[Event "WJCC U20 Open 2019"]
[Site "New Delhi"]
[Date "2019.10.17"]
[Round "3.26"]
[White "Saurabh Anand"]
[Black "Bharath Subramaniyam H"]
[Result "1/2-1/2"]
[ECO "B30"]
[WhiteElo "2236"]
[BlackElo "2417"]
[Annotator "ChessBase"]
[PlyCount "89"]
[EventDate "2019.10.15"]
[EventType "swiss"]
[EventCountry "IND"]
[SourceTitle "playchess.com"]
[Source "ChessBase"]
[SourceQuality "1"]
[TimeControl "40/5400+30:1800+30"]

1. e4 c5 2. Nf3 Nc6 3. Nc3 d6 4. d4 cxd4 5. Nxd4 e5 6. Nf3 Nf6 7. Bg5 Be7 8. Bxf6 Bxf6 9. Nd5 O-O 10. Bc4 Be6 11. O-O Rc8 12. Bb3 Bg5 13. Qe2 Bh6 14. Rfd1 Kh8 15. c3 f5 16. exf5 Bxf5 17. Bc2 g6 18. Be4 Qd7 19. Nd2 Ne7 20. Nc4 Nxd5 21. Bxf5 Nf4 22. Bxd7 Nxe2+ 23. Kf1 Rxc4 24. Kxe2 Re4+ 25. Kf1 Ref4 26. f3 e4 27. Rxd6 exf3 28. g3 Re4 29. Re1 Rxe1+ 30. Kxe1 Bc1 31. b3 Ba3 32. Rd5 b6 33. Kf1 a5 34. Rd3 Bc5 35. Bc6 f2 36. Bb5 Rf5 37. a4 Re5 38. Rd1 Re4 39. Rd8+ Kg7 40. Re8 Rg4 41. Re5 Kf6 42. Bd7 Kxe5 43. Bxg4 Ke4 44. b4 Ke5 45. Ke2 1/2-1/2

[Event "WJCC U20 Open 2019"]
[Site "New Delhi"]
[Date "2019.10.17"]
[Round "3.27"]
[White "Bronstein, Or"]
[Black "Zlatin, Alexander"]
[Result "1/2-1/2"]
[ECO "D11"]
[WhiteElo "2413"]
[BlackElo "2263"]
[Annotator "ChessBase"]
[PlyCount "79"]
[EventDate "2019.10.15"]
[EventType "swiss"]
[EventCountry "IND"]
[SourceTitle "playchess.com"]
[Source "ChessBase"]
[SourceQuality "1"]
[TimeControl "40/5400+30:1800+30"]

1. d4 {[%emt 0:00:00]} d5 {[%emt 0:00:46]} 2. c4 {[%emt 0:00:28]} c6 {[%emt 0:00:07]} 3. Nf3 {[%emt 0:03:50]} Nf6 {[%emt 0:00:17]} 4. e3 {[%emt 0:00:12]} e6 {[%emt 0:03:15]} 5. b3 {[%emt 0:00:26]} Ne4 {[%emt 0:04:31]} 6. Bd3 {[%emt 0:04:13]} Nd7 {[%emt 0:05:01]} 7. O-O {[%emt 0:03:02]} Bd6 {[%emt 0:03:55]} 8. Ba3 {[%emt 0:07:31]} Bxa3 {[%emt 0:06:44]} 9. Nxa3 {[%emt 0:00:02]} O-O {[%emt 0:02:47]} 10. b4 {[%emt 0:06:35]} Qe7 {[%emt 0:09:32]} 11. Qb3 {[%emt 0:01:59]} dxc4 {[%emt 0:06:37]} 12. Nxc4 {[%emt 0:00:58]} Nd6 {[%emt 0:00:37]} 13. Nxd6 {[%emt 0:08:40]} Qxd6 {[%emt 0:00:02]} 14. Rfd1 {[%emt 0:00:11]} Qe7 {[%emt 0:03:47]} 15. Qc3 {[%emt 0:00:31]} Re8 {[%emt 0:02:20]} 16. Bc2 {[%emt 0:02:48]} Nf6 {[%emt 0:03:30]} 17. a3 {[%emt 0:08:50]} a5 {[%emt 0:03:08]} 18. e4 {[%emt 0:01:44]} Rd8 {[%emt 0:05:33]} 19. h3 {[%emt 0:08:51]} h6 {[%emt 0:07:17]} 20. Ne5 {[%emt 0:06:57]} Qc7 {[%emt 0:06:13]} 21. Nc4 {[%emt 0:08:22]} axb4 {[%emt 0:01:56]} 22. axb4 {[%emt 0:00:01]} Rxa1 {[%emt 0:00:09]} 23. Rxa1 {[%emt 0:00:10]} Nd5 {[%emt 0:02:04]} 24. Qe1 {[%emt 0:13:56]} Nb6 {[%emt 0:03:03]} 25. Qc3 {[%emt 0:00:02]} Nd5 {[%emt 0:00:07]} 26. Qb2 {[%emt 0:00:46]} Nf4 {[%emt 0:01:13]} 27. Re1 {[%emt 0:02:20]} Qe7 {[%emt 0:01:07]} 28. g3 {[%emt 0:07:21]} Nxh3+ {[%emt 0:04:04]} 29. Kg2 {[%emt 0:00:00]} e5 {[%emt 0:00:27]} 30. Nxe5 {[%emt 0:01:35]} Qg5 {[%emt 0:00:46]} 31. Bb3 {[%emt 0:00:35]} Be6 {[%emt 0:01:18]} 32. Bxe6 {[%emt 0:02:15]} Nf4+ {[%emt 0:00:09]} 33. Kg1 {[%emt 0:00:01]} Nxe6 {[%emt 0:00:07]} 34. Rd1 {[%emt 0:00:28]} h5 35. Rd3 {[%emt 0:01:12]} h4 {[%emt 0:03:50]} 36. d5 {[%emt 0:00:01]} cxd5 {[%emt 0:01:07]} 37. exd5 {[%emt 0:00:02]} Nf4 {[%emt 0:00:38]} 38. Qd2 {[%emt 0:01:30]} Qxe5 {[%emt 0:00:16]} 39. Qxf4 {[%emt 0:00:09]} Rxd5 {[%emt 0:01:52]} 40. Rxd5 {[%emt 0:00:18]} 1/2-1/2

[Event "WJCC U20 Open 2019"]
[Site "New Delhi"]
[Date "2019.10.17"]
[Round "3.31"]
[White "Vatsal Singhania"]
[Black "Percivaldi, Martin"]
[Result "0-1"]
[ECO "C50"]
[WhiteElo "2157"]
[BlackElo "2391"]
[Annotator "ChessBase"]
[PlyCount "56"]
[EventDate "2019.10.15"]
[EventType "swiss"]
[EventCountry "IND"]
[SourceTitle "playchess.com"]
[Source "ChessBase"]
[SourceQuality "1"]
[TimeControl "40/5400+30:1800+30"]

1. e4 e5 2. Nf3 Nc6 3. Bc4 Bc5 4. O-O Nf6 5. d3 d6 6. c3 a6 7. a4 Ba7 8. Nbd2 O-O 9. Re1 Ng4 10. Re2 Kh8 11. h3 f5 12. exf5 Nxf2 13. Rxf2 Bxf2+ 14. Kxf2 Bxf5 15. Qe2 d5 16. Bb3 Qd6 17. Kg1 Rae8 18. Nh4 Ne7 19. a5 h6 20. Nxf5 Nxf5 21. Nf1 e4 22. d4 Re6 23. Be3 Rg6 24. Bf2 c6 25. c4 Rg5 26. cxd5 cxd5 27. Rc1 Qb4 28. Bxd5 Nxd4 0-1

[Event "WJCC U20 Open 2019"]
[Site "New Delhi"]
[Date "2019.10.17"]
[Round "3.34"]
[White "Raja Rithvik R"]
[Black "Mohd Saprin, Amir Ghaazi"]
[Result "1-0"]
[ECO "A35"]
[WhiteElo "2369"]
[BlackElo "1942"]
[Annotator "ChessBase"]
[PlyCount "81"]
[EventDate "2019.10.15"]
[EventType "swiss"]
[EventCountry "IND"]
[SourceTitle "playchess.com"]
[Source "ChessBase"]
[SourceQuality "1"]
[TimeControl "40/5400+30:1800+30"]

1. Nf3 {[%emt 0:02:47]} Nf6 {[%emt 0:00:00]} 2. c4 {[%emt 0:00:09]} c5 {[%emt 0:00:00]} 3. Nc3 {[%emt 0:00:10]} Nc6 {[%emt 0:00:33]} 4. d4 {[%emt 0:00:12]} cxd4 {[%emt 0:00:09]} 5. Nxd4 {[%emt 0:00:05]} g6 {[%emt 0:00:13]} 6. g3 {[%emt 0:00:08]} Bg7 {[%emt 0:00:12]} 7. Bg2 {[%emt 0:00:06]} O-O {[%emt 0:00:11]} 8. O-O {[%emt 0:00:07]} Nxd4 {[%emt 0:00:25]} 9. Qxd4 {[%emt 0:00:06]} d6 {[%emt 0:00:11]} 10. Qd3 {[%emt 0:00:06]} Be6 {[%emt 0:00:34]} 11. Bd2 {[%emt 0:09:37]} Rb8 {[%emt 0:00:49]} 12. Rac1 {[%emt 0:00:26]} a6 {[%emt 0:01:53]} 13. b3 {[%emt 0:00:25]} Qd7 {[%emt 0:04:18]} 14. a4 {[%emt 0:09:17]} Bh3 {[%emt 0:02:41]} 15. Rfd1 {[%emt 0:01:47]} Bxg2 {[%emt 0:00:26]} 16. Kxg2 {[%emt 0:00:01]} Qc6+ {[%emt 0:10:36]} 17. f3 {[%emt 0:02:12]} Nd7 {[%emt 0:13:41]} 18. Nd5 {[%emt 0:01:40]} Rfe8 {[%emt 0:01:05]} 19. Bg5 {[%emt 0:13:26]} Bf8 {[%emt 0:09:15]} 20. a5 {[%emt 0:06:10]} e6 {[%emt 0:01:38]} 21. Nf6+ {[%emt 0:09:30]} Nxf6 {[%emt 0:00:07]} 22. Bxf6 {[%emt 0:00:01]} e5 {[%emt 0:05:22]} 23. Qd5 {[%emt 0:18:04]} h6 {[%emt 0:06:25]} 24. g4 {[%emt 0:00:39]} Qxd5 {[%emt 0:05:15]} 25. Rxd5 {[%emt 0:00:23]} b6 {[%emt 0:00:18]} 26. Bh4 {[%emt 0:04:54]} bxa5 {[%emt 0:00:49]} 27. Rc3 {[%emt 0:01:51]} Rb4 {[%emt 0:08:33]} 28. Rxa5 {[%emt 0:01:05]} Reb8 {[%emt 0:00:25]} 29. Ra3 {[%emt 0:02:26]} R4b7 {[%emt 0:12:51]} 30. Rd3 {[%emt 0:00:54]} Ra8 {[%emt 0:09:14]} 31. Bf2 {[%emt 0:03:57]} a5 {[%emt 0:05:36]} 32. Be1 {[%emt 0:00:15]} Rba7 {[%emt 0:00:19]} 33. Ra4 {[%emt 0:01:36]} Kg7 {[%emt 0:00:34]} 34. Rd5 {[%emt 0:00:58]} Rb7 {[%emt 0:01:44]} 35. b4 {[%emt 0:00:26]} Rc7 {[%emt 0:00:33]} 36. bxa5 {[%emt 0:00:59]} Rac8 {[%emt 0:00:30]} 37. a6 {[%emt 0:00:16]} Rxc4 {[%emt 0:00:32]} 38. Rxc4 {[%emt 0:00:16]} Rxc4 {[%emt 0:00:06]} 39. a7 Rc8 {[%emt 0:00:30]} 40. Rb5 {[%emt 0:00:07]} Ra8 {[%emt 0:00:39]} 41. Bf2 {[%emt 0:30:05]} 1-0

[Event "WJCC U20 Open 2019"]
[Site "New Delhi"]
[Date "2019.10.17"]
[Round "3.39"]
[White "Neelash Saha"]
[Black "Hamad Essam"]
[Result "1-0"]
[ECO "A45"]
[WhiteElo "2334"]
[BlackElo "1849"]
[Annotator "ChessBase"]
[PlyCount "56"]
[EventDate "2019.10.15"]
[EventType "swiss"]
[EventCountry "IND"]
[SourceTitle "playchess.com"]
[Source "ChessBase"]
[SourceQuality "1"]
[TimeControl "40/5400+30:1800+30"]

1. d4 {[%emt 0:03:22]} Nf6 {[%emt 0:00:00]} 2. Bg5 {[%emt 0:00:26]} c5 {[%emt 0:00:04]} 3. d5 {[%emt 0:00:18]} Qb6 {[%emt 0:00:36]} 4. Nc3 {[%emt 0:00:11]} d6 {[%emt 0:00:07]} 5. e4 {[%emt 0:05:24]} g6 {[%emt 0:00:09]} 6. Qc1 {[%emt 0:05:18]} Bg7 {[%emt 0:04:21]} 7. Nf3 {[%emt 0:04:11]} O-O {[%emt 0:06:16]} 8. Nd2 {[%emt 0:01:41]} e6 9. Nc4 {[%emt 0:00:30]} Qd8 10. Be2 {[%emt 0:00:30]} h6 11. Bxh6 {[%emt 0:00:30]} b5 12. Bxg7 {[%emt 0:00:30]} Kxg7 13. Nxb5 {[%emt 0:00:30]} Nxe4 14. Ne3 {[%emt 0:00:30]} a6 15. Nc3 {[%emt 0:00:30]} Nxc3 16. bxc3 {[%emt 0:00:30]} e5 17. Nc4 {[%emt 0:00:30]} Ra7 18. h4 {[%emt 0:00:30]} Rh8 19. h5 {[%emt 0:00:30]} gxh5 20. Qe3 {[%emt 0:00:30]} h4 21. f4 {[%emt 0:00:30]} exf4 22. Qxf4 {[%emt 0:00:30]} Rh6 23. O-O-O {[%emt 0:00:30]} Qe7 24. Rde1 {[%emt 0:00:30]} Qf6 25. Qxf6+ {[%emt 0:00:30]} Rxf6 26. Bf3 {[%emt 0:00:30]} h3 27. Re2 {[%emt 0:00:30]} Rc7 28. Nb6 {[%emt 0:00:30]} Bf5 1-0

[Event "WJCC U20 Open 2019"]
[Site "New Delhi"]
[Date "2019.10.17"]
[Round "3.40"]
[White "Nitish Belurkar"]
[Black "Swarnavo Choudhury"]
[Result "1-0"]
[ECO "B48"]
[WhiteElo "2311"]
[BlackElo "1797"]
[Annotator "ChessBase"]
[PlyCount "103"]
[EventDate "2019.10.15"]
[EventType "swiss"]
[EventCountry "IND"]
[SourceTitle "playchess.com"]
[Source "ChessBase"]
[SourceQuality "1"]
[TimeControl "40/5400+30:1800+30"]

1. e4 c5 2. Nf3 e6 3. d4 cxd4 4. Nxd4 Nc6 5. Nc3 Qc7 6. Be3 a6 7. Qf3 Nf6 8. O-O-O Ne5 9. Qg3 b5 10. a3 Bb7 11. Bxb5 axb5 12. Ndxb5 Qb8 13. Bb6 Nc4 14. Nc7+ Ke7 15. Nxa8 Qxg3 16. hxg3 Bxa8 17. Bc5+ Kd8 18. Bxf8 Rxf8 19. b3 Nb6 20. f3 e5 21. Nb5 Bc6 22. Nd6 Kc7 23. g4 h6 24. a4 Ne8 25. Nf5 d6 26. c4 Nd7 27. a5 g6 28. Ne3 Nc5 29. Kb2 Nf6 30. b4 Ne6 31. Rxh6 Nd4 32. Rd2 Rb8 33. Ka3 Ra8 34. Rh1 Bd7 35. Rc1 Bc6 36. Nc2 Ne6 37. Na1 Nd4 38. Nb3 Nxb3 39. Kxb3 Bb7 40. Rcd1 Ne8 41. Rc1 Bc6 42. b5 Rb8 43. Kb4 Nf6 44. Rcd1 Ne8 45. g5 Bd7 46. a6 Kb6 47. Rxd6+ Nxd6 48. Rxd6+ Kc7 49. a7 Ra8 50. b6+ Kc8 51. Rxd7 Kxd7 52. b7 1-0

[Event "WJCC U20 Open 2019"]
[Site "New Delhi"]
[Date "2019.10.17"]
[Round "3.41"]
[White "Lama, Milan"]
[Black "Vykouk, Jan"]
[Result "0-1"]
[ECO "B07"]
[WhiteElo "1976"]
[BlackElo "2468"]
[Annotator "ChessBase"]
[PlyCount "74"]
[EventDate "2019.10.15"]
[EventType "swiss"]
[EventCountry "IND"]
[SourceTitle "playchess.com"]
[Source "ChessBase"]
[SourceQuality "1"]
[TimeControl "40/5400+30:1800+30"]

1. e4 {[%emt 0:00:00]} d6 {[%emt 0:00:04]} 2. d4 {[%emt 0:00:23]} Nf6 {[%emt 0:00:07]} 3. Nc3 {[%emt 0:00:06]} Nbd7 {[%emt 0:01:20]} 4. Nf3 {[%emt 0:01:05]} e5 {[%emt 0:00:14]} 5. Be2 {[%emt 0:04:56]} Be7 {[%emt 0:00:11]} 6. O-O {[%emt 0:02:30]} O-O {[%emt 0:00:10]} 7. h3 {[%emt 0:01:05]} c6 {[%emt 0:00:08]} 8. Be3 {[%emt 0:00:50]} b5 {[%emt 0:01:41]} 9. a4 {[%emt 0:10:57]} b4 {[%emt 0:00:13]} 10. Na2 {[%emt 0:00:23]} a5 {[%emt 0:01:13]} 11. c3 {[%emt 0:03:23]} c5 {[%emt 0:05:06]} 12. Bb5 {[%emt 0:06:47]} Bb7 {[%emt 0:00:49]} 13. dxe5 {[%emt 0:05:03]} Nxe4 {[%emt 0:04:15]} 14. exd6 {[%emt 0:06:10]} Bxd6 {[%emt 0:00:12]} 15. cxb4 {[%emt 0:06:59]} cxb4 {[%emt 0:01:38]} 16. Qe2 {[%emt 0:03:12]} Ne5 {[%emt 0:03:15]} 17. Nxe5 {[%emt 0:07:35]} Bxe5 {[%emt 0:00:06]} 18. Nc1 {[%emt 0:03:01]} Qf6 {[%emt 0:04:47]} 19. Nd3 {[%emt 0:01:10]} Bd6 {[%emt 0:00:06]} 20. Rfd1 {[%emt 0:03:20]} Rac8 {[%emt 0:01:34]} 21. Rac1 {[%emt 0:02:34]} Bb8 {[%emt 0:04:45]} 22. Ne1 {[%emt 0:05:14]} Rxc1 {[%emt 0:04:15]} 23. Bxc1 {[%emt 0:02:22]} Ng5 {[%emt 0:14:31]} 24. Qg4 {[%emt 0:06:37]} Ne6 {[%emt 0:00:06]} 25. Nf3 {[%emt 0:02:21]} Rd8 {[%emt 0:01:34]} 26. Re1 {[%emt 0:03:02]} h6 {[%emt 0:04:07]} 27. Qh4 {[%emt 0:05:32]} Qxh4 {[%emt 0:02:59]} 28. Nxh4 {[%emt 0:00:07]} Nd4 {[%emt 0:01:00]} 29. Bd2 {[%emt 0:03:32]} Nxb5 {[%emt 0:03:23]} 30. axb5 {[%emt 0:00:09]} a4 {[%emt 0:00:55]} 31. Nf3 {[%emt 0:02:38]} a3 {[%emt 0:01:37]} 32. bxa3 {[%emt 0:00:25]} bxa3 {[%emt 0:00:11]} 33. Ra1 {[%emt 0:01:41]} a2 {[%emt 0:03:48]} 34. Kf1 {[%emt 0:00:42]} Bd5 {[%emt 0:00:14]} 35. b6 {[%emt 0:00:41]} f6 {[%emt 0:07:41]} 36. Ke2 {[%emt 0:00:33]} Bc4+ {[%emt 0:00:51]} 37. Ke1 {[%emt 0:00:14]} Bd6 {[%emt 0:00:45]} 0-1

[Event "WJCC U20 Open 2019"]
[Site "New Delhi"]
[Date "2019.10.17"]
[Round "3.42"]
[White "Raahul V S"]
[Black "Maltezeanu, Stefan"]
[Result "0-1"]
[ECO "A20"]
[WhiteElo "2262"]
[BlackElo "2102"]
[Annotator "ChessBase"]
[PlyCount "82"]
[EventDate "2019.10.15"]
[EventType "swiss"]
[EventCountry "IND"]
[SourceTitle "playchess.com"]
[Source "ChessBase"]
[SourceQuality "1"]
[TimeControl "40/5400+30:1800+30"]

1. c4 {[%emt 0:00:52]} e5 {[%emt 0:01:51]} 2. g3 {[%emt 0:00:21]} Nf6 {[%emt 0:00:13]} 3. Bg2 {[%emt 0:00:07]} d5 {[%emt 0:00:25]} 4. cxd5 {[%emt 0:00:10]} Nxd5 {[%emt 0:00:14]} 5. Nc3 {[%emt 0:00:02]} Nb6 {[%emt 0:00:08]} 6. Nf3 {[%emt 0:00:18]} Nc6 {[%emt 0:00:05]} 7. O-O {[%emt 0:00:35]} Be7 {[%emt 0:00:12]} 8. Rb1 {[%emt 0:01:07]} Be6 {[%emt 0:00:15]} 9. b4 {[%emt 0:00:54]} e4 {[%emt 0:02:51]} 10. Nxe4 {[%emt 0:00:28]} Bxa2 {[%emt 0:01:24]} 11. Ra1 {[%emt 0:00:29]} Bd5 {[%emt 0:04:52]} 12. Nc5 {[%emt 0:02:07]} Nxb4 {[%emt 0:04:19]} 13. d4 {[%emt 0:00:09]} O-O {[%emt 0:12:52]} 14. Ba3 {[%emt 0:03:32]} a5 {[%emt 0:01:10]} 15. Re1 {[%emt 0:07:24]} Nc4 {[%emt 0:06:31]} 16. Bxb4 {[%emt 0:02:18]} axb4 {[%emt 0:00:10]} 17. Rb1 {[%emt 0:00:05]} Na3 {[%emt 0:11:09]} 18. Rb2 {[%emt 0:00:22]} b6 {[%emt 0:01:49]} 19. e4 {[%emt 0:02:18]} bxc5 {[%emt 0:14:52]} 20. exd5 {[%emt 0:00:02]} c4 {[%emt 0:00:10]} 21. Ne5 {[%emt 0:00:50]} c3 {[%emt 0:00:14]} 22. Rb3 {[%emt 0:00:39]} c2 {[%emt 0:06:04]} 23. Qd3 {[%emt 0:02:05]} Bd6 {[%emt 0:03:46]} 24. Nc6 {[%emt 0:03:04]} Qg5 {[%emt 0:02:31]} 25. f4 {[%emt 0:03:38]} Rfe8 {[%emt 0:09:26]} 26. Rc1 {[%emt 0:02:07]} Qg6 {[%emt 0:03:28]} 27. Qxg6 {[%emt 0:00:50]} hxg6 {[%emt 0:00:17]} 28. Bf1 {[%emt 0:00:03]} Kh7 {[%emt 0:06:44]} 29. Bd3 {[%emt 0:00:48]} Kh6 {[%emt 0:00:34]} 30. Kf2 {[%emt 0:03:02]} f6 {[%emt 0:02:15]} 31. h4 {[%emt 0:01:47]} f5 {[%emt 0:02:19]} 32. Ne5 {[%emt 0:03:12]} Ra5 {[%emt 0:01:02]} 33. Nf7+ {[%emt 0:00:36]} Kh7 {[%emt 0:00:14]} 34. Nxd6 {[%emt 0:00:20]} cxd6 {[%emt 0:00:04]} 35. Rxb4 {[%emt 0:00:37]} Rea8 {[%emt 0:02:08]} 36. h5 {[%emt 0:01:52]} Ra4 {[%emt 0:00:37]} 37. Rb7 {[%emt 0:07:53]} Rxd4 {[%emt 0:00:09]} 38. Ke3 {[%emt 0:00:02]} Rxd5 {[%emt 0:00:29]} 39. h6 {[%emt 0:00:12]} Re8+ {[%emt 0:00:36]} 40. Kd2 {[%emt 0:00:06]} Nc4+ {[%emt 0:00:56]} 41. Kxc2 {[%emt 0:34:46]} Rc8 {[%emt 0:04:39]} 0-1

[Event "WJCC U20 Open 2019"]
[Site "New Delhi"]
[Date "2019.10.17"]
[Round "3.43"]
[White "Tifferet, Shaked"]
[Black "Licheli, Luka"]
[Result "1-0"]
[ECO "B11"]
[WhiteElo "2224"]
[BlackElo "2010"]
[Annotator "ChessBase"]
[PlyCount "51"]
[EventDate "2019.10.15"]
[EventType "swiss"]
[EventCountry "IND"]
[SourceTitle "playchess.com"]
[Source "ChessBase"]
[SourceQuality "1"]
[TimeControl "40/5400+30:1800+30"]

1. e4 {[%emt 0:00:00]} c6 {[%emt 0:00:51]} 2. Nc3 {[%emt 0:00:10]} d5 {[%emt 0:01:58]} 3. Nf3 {[%emt 0:00:11]} Bg4 {[%emt 0:00:45]} 4. h3 {[%emt 0:00:07]} Bxf3 {[%emt 0:00:07]} 5. Qxf3 {[%emt 0:00:06]} e6 {[%emt 0:00:05]} 6. Be2 {[%emt 0:00:32]} g6 {[%emt 0:01:22]} 7. d4 {[%emt 0:00:50]} Bg7 {[%emt 0:17:52]} 8. Be3 {[%emt 0:00:30]} Ne7 {[%emt 0:13:16]} 9. O-O-O {[%emt 0:00:14]} Nd7 {[%emt 0:07:29]} 10. g4 {[%emt 0:00:06]} b5 {[%emt 0:13:54]} 11. exd5 {[%emt 0:00:59]} exd5 {[%emt 0:12:00]} 12. Bd3 {[%emt 0:05:02]} Qa5 {[%emt 0:12:15]} 13. Kb1 {[%emt 0:00:02]} b4 {[%emt 0:02:07]} 14. Ne2 {[%emt 0:00:06]} Rf8 {[%emt 0:08:54]} 15. Bg5 {[%emt 0:03:58]} h6 {[%emt 0:01:23]} 16. Bh4 {[%emt 0:01:28]} g5 {[%emt 0:01:41]} 17. Bg3 {[%emt 0:00:05]} O-O-O {[%emt 0:00:46]} 18. Bd6 {[%emt 0:00:17]} Rde8 {[%emt 0:01:04]} 19. Nc1 {[%emt 0:06:47]} Qb6 {[%emt 0:00:36]} 20. Nb3 {[%emt 0:00:24]} Nf6 {[%emt 0:00:54]} 21. Nc5 {[%emt 0:03:32]} Ng6 {[%emt 0:00:34]} 22. Qf5+ {[%emt 0:01:14]} Kd8 {[%emt 0:00:22]} 23. Ba6 {[%emt 0:00:22]} Ne7 {[%emt 0:00:40]} 24. Bxe7+ {[%emt 0:01:58]} Kxe7 {[%emt 0:00:01]} 25. Qe5+ {[%emt 0:00:08]} Kd8 {[%emt 0:00:26]} 26. Qd6+ {[%emt 0:00:05] Ng8} 1-0

[Event "WJCC U20 Open 2019"]
[Site "New Delhi"]
[Date "2019.10.17"]
[Round "3.44"]
[White "Zrikem, Nassim"]
[Black "Donoso Diaz, Sebastian"]
[Result "0-1"]
[ECO "D05"]
[WhiteElo "2125"]
[BlackElo "2203"]
[Annotator "ChessBase"]
[PlyCount "73"]
[EventDate "2019.10.15"]
[EventType "swiss"]
[EventCountry "IND"]
[SourceTitle "playchess.com"]
[Source "ChessBase"]
[SourceQuality "1"]
[TimeControl "40/5400+30:1800+30"]

1. d4 {[%emt 0:00:00]} d5 {[%emt 0:00:00]} 2. Nf3 {[%emt 0:00:00]} Nf6 {[%emt 0:00:02]} 3. e3 {[%emt 0:00:00]} e6 {[%emt 0:00:29]} 4. Bd3 {[%emt 0:00:09]} c5 {[%emt 0:00:25]} 5. Nbd2 {[%emt 0:00:13]} Nc6 {[%emt 0:00:18]} 6. c3 {[%emt 0:00:06]} Bd6 {[%emt 0:00:26]} 7. O-O {[%emt 0:00:12]} O-O {[%emt 0:00:15]} 8. dxc5 {[%emt 0:00:06]} Bxc5 {[%emt 0:00:06]} 9. e4 {[%emt 0:00:04]} Qc7 {[%emt 0:01:16]} 10. Qe2 {[%emt 0:00:20]} h6 {[%emt 0:02:44]} 11. Bc2 {[%emt 0:04:05]} Bb6 {[%emt 0:07:35]} 12. exd5 {[%emt 0:09:00]} exd5 {[%emt 0:01:03]} 13. Nb3 {[%emt 0:03:06]} Re8 {[%emt 0:27:10]} 14. Qd3 {[%emt 0:04:44]} Bg4 {[%emt 0:01:06]} 15. Nfd4 {[%emt 0:05:41]} Rac8 {[%emt 0:16:11]} 16. Bd1 {[%emt 0:32:28]} Ne5 {[%emt 0:10:58]} 17. Qc2 {[%emt 0:05:36]} Nc4 {[%emt 0:03:05]} 18. h3 {[%emt 0:10:27]} Bd7 {[%emt 0:00:25]} 19. Bf3 {[%emt 0:04:20]} Qe5 {[%emt 0:00:38]} 20. Bd2 {[%emt 0:13:15]} Nxd2 {[%emt 0:01:12]} 21. Qxd2 {[%emt 0:00:23]} Bc7 {[%emt 0:00:08]} 22. g3 {[%emt 0:00:14]} Bxh3 {[%emt 0:00:06]} 23. Rfe1 {[%emt 0:00:11]} Ne4 {[%emt 0:00:52]} 24. Qe2 {[%emt 0:03:14]} Qg5 {[%emt 0:01:03]} 25. Bxe4 {[%emt 0:01:47]} Rxe4 {[%emt 0:01:03]} 26. Qd2 {[%emt 0:00:59]} Bf4 {[%emt 0:00:31]} 27. Qd3 {[%emt 0:01:11]} Rce8 {[%emt 0:00:53]} 28. Re2 {[%emt 0:01:31]} Rxe2 {[%emt 0:11:22]} 29. Nxe2 {[%emt 0:00:05]} Bf5 {[%emt 0:00:32]} 30. Qb5 {[%emt 0:00:52]} Bd7 {[%emt 0:08:15]} 31. Qxd7 {[%emt 0:00:11]} Rxe2 {[%emt 0:00:05]} 32. Nd4 {[%emt 0:00:01]} Rxb2 {[%emt 0:01:50]} 33. Nf3 {[%emt 0:01:23]} Qg6 {[%emt 0:00:27]} 34. Nh4 {[%emt 0:00:30]} Qc2 {[%emt 0:01:02]} 35. Qc8+ {[%emt 0:00:31]} Kh7 {[%emt 0:00:07]} 36. Rf1 {[%emt 0:00:32]} Bxg3 {[%emt 0:00:57]} 37. Qf5+ {[%emt 0:00:02]} 0-1

[Event "WJCC U20 Open 2019"]
[Site "New Delhi"]
[Date "2019.10.17"]
[Round "3.45"]
[White "Aravena Navarro, Alexis Andres"]
[Black "Cansun, Can Alp"]
[Result "0-1"]
[ECO "B47"]
[WhiteElo "2023"]
[BlackElo "2199"]
[Annotator "ChessBase"]
[PlyCount "74"]
[EventDate "2019.10.15"]
[EventType "swiss"]
[EventCountry "IND"]
[SourceTitle "playchess.com"]
[Source "ChessBase"]
[SourceQuality "1"]
[TimeControl "40/5400+30:1800+30"]

1. e4 c5 {[%emt 0:01:32]} 2. Nf3 {[%emt 0:00:00]} e6 {[%emt 0:00:16]} 3. d4 {[%emt 0:00:53]} cxd4 {[%emt 0:00:07]} 4. Nxd4 {[%emt 0:00:09]} Nc6 {[%emt 0:00:31]} 5. Nc3 {[%emt 0:00:14]} Qc7 {[%emt 0:00:32]} 6. Qd3 {[%emt 0:01:32]} a6 {[%emt 0:04:14]} 7. Nxc6 {[%emt 0:02:44]} dxc6 {[%emt 0:00:11]} 8. Qg3 {[%emt 0:00:23]} Qxg3 {[%emt 0:01:52]} 9. hxg3 {[%emt 0:00:02]} e5 {[%emt 0:01:46]} 10. Na4 {[%emt 0:08:18]} Be6 {[%emt 0:03:34]} 11. Be3 {[%emt 0:01:06]} Nf6 {[%emt 0:00:26]} 12. f3 {[%emt 0:00:31]} Nd7 {[%emt 0:02:29]} 13. O-O-O {[%emt 0:03:47]} Be7 {[%emt 0:03:18]} 14. g4 {[%emt 0:10:21]} O-O-O {[%emt 0:07:53]} 15. b3 {[%emt 0:25:23]} b5 {[%emt 0:08:33]} 16. Nb2 {[%emt 0:00:41]} h6 {[%emt 0:06:07]} 17. c4 {[%emt 0:04:52]} Kb7 {[%emt 0:14:20]} 18. Rh5 {[%emt 0:00:37]} f6 {[%emt 0:01:22]} 19. Be2 {[%emt 0:02:43]} Ba3 {[%emt 0:15:45]} 20. Kc2 {[%emt 0:03:58]} Nb6 {[%emt 0:04:51]} 21. c5 {[%emt 0:11:06]} Rxd1 {[%emt 0:02:59]} 22. Bxd1 {[%emt 0:00:31]} Nd7 {[%emt 0:00:56]} 23. Nd3 {[%emt 0:00:09]} a5 {[%emt 0:00:38]} 24. Kc3 {[%emt 0:08:00]} Rd8 {[%emt 0:03:51]} 25. Rh1 {[%emt 0:02:15]} Bf7 {[%emt 0:03:05]} 26. g3 {[%emt 0:00:54]} Re8 {[%emt 0:04:52]} 27. Rh2 {[%emt 0:00:55]} Nf8 {[%emt 0:01:15]} 28. Rd2 {[%emt 0:04:34]} Kc7 {[%emt 0:04:22]} 29. f4 {[%emt 0:02:01]} exf4 {[%emt 0:00:33]} 30. Bxf4+ {[%emt 0:00:05]} Kc8 {[%emt 0:01:07]} 31. Bd6 {[%emt 0:01:12]} Ne6 {[%emt 0:00:40]} 32. b4 {[%emt 0:01:40]} Ng5 {[%emt 0:00:10]} 33. Rc2 {[%emt 0:03:54]} axb4+ {[%emt 0:00:23]} 34. Nxb4 {[%emt 0:00:45]} Nxe4+ {[%emt 0:00:02]} 35. Kd4 {[%emt 0:00:12]} Bxb4 {[%emt 0:00:15]} 36. Bf3 {[%emt 0:00:24]} Nxd6 {[%emt 0:00:40]} 37. cxd6 {[%emt 0:00:10]} c5+ {[%emt 0:00:06]} 0-1